Cogmind - Beta 13 @@@ ROGUE MODE // 2024.06.12 @ 15:15:48 Player: Some Pennies Result: Destroyed by B9-PTK(R) with Subdweller Machine Gun Performance ------------- Evolutions (0) 0 Regions Visited (2) 400 Robots Destroyed (36) 180 Value Destroyed (587) 587 Prototype IDs (0) 0 Alien Tech Used (0) 0 Bonus (0) 0 TOTAL SCORE: 1167 Bonus ------- None Cogmind --------- Core Integrity 0/250 Matter 290/300 Energy 166/170 System Corruption 0% Temperature Cool (2) Movement Treading (160) Location -10/Subcaves Parts ------- > --- POWER (1) -------- Makeshift Power Source > --- PROPULSION (2) --- Light Treads Spiked Treads > --- UTILITY (2) ------ Scrap Shield > --- WEAPON (2) ------- Spread Laser Barrage Gun > --- INVENTORY (5) ---- Large Storage Unit Makeshift Hacking Suite Subdweller Shrapnel Launcher Subdweller Shrapnel Launcher Mining Laser Peak State ------------ > --- POWER ------------ Makeshift Power Source > --- PROPULSION ------- Light Treads Spiked Treads > --- UTILITY ---------- Scrap Shield > --- WEAPON ----------- Riot Gun Barrage Gun > --- INVENTORY -------- Large Storage Unit Makeshift Hacking Suite Spread Laser Subdweller Shrapnel Launcher Mining Laser [Rating: 18] Favorites ----------- Power Light Ion Engine Engine Light Ion Engine Propulsion Light Treads Treads Light Treads Wheel Compact Wheel Utility Seismic Detector Device Seismic Detector Storage Large Storage Unit Protection Scrap Shield Weapon Spread Laser Energy Gun Spread Laser Ballistic Gun Barrage Gun Special Weapon Mining Laser Build | -11 -10 -10 ------- Run | Yrd Mat Sub Slots Evolved . | . . . Power . | . . . Propulsion . | . . . Utility . | . . . Weapon . | . . . Parts Attached 29 | 9 5 15 Power 3 | 1 . 2 Engine 3 | 1 . 2 Core . | . . . Reactor . | . . . Propulsion 4 | 2 1 1 Treads 3 | 1 1 1 Leg . | . . . Wheel 1 | 1 . . Hover . | . . . Flight . | . . . Utility 9 | 4 2 3 Device 5 | 3 1 1 Storage 2 | 1 1 . Processor . | . . . Hackware . | . . . Protection 2 | . . 2 Artifact . | . . . Weapon 13 | 2 2 9 Energy Gun 8 | . 2 6 Energy Cannon . | . . . Ballistic Gun 3 | 2 . 1 Ballistic Cannon . | . . . Launcher . | . . . Special Weapon 2 | . . 2 Impact Weapon . | . . . Slashing Weapon . | . . . Piercing Weapon . | . . . Special Melee Weapon . | . . . Unidentified Prototypes . | . . . Parts Lost 2 | . . 2 Power 1 | . . 1 Propulsion 1 | . . 1 Utility . | . . . Weapon . | . . . Highest Loss Streak 2 | . . 2 To Critical Strikes . | . . . Average Slot Usage (%) 92 | . 100 85 Engine 13 | . 14 13 Treads 28 | . 28 28 Device 7 | . 14 1 Storage 7 | . 14 1 Protection 6 | . . 12 Energy Gun 19 | . 25 13 Ballistic Gun 5 | . 2 9 Special Weapon 2 | . . 4 Naked Turns . | . . . Heaviest Build 30 | 11 30 30 Greatest Support 40 | 16 40 40 Greatest Overweight (x) . | . . . Average Overweight (x) . | . . . Largest Inventory Capacity 15 | 8 15 15 Average Capacity 9 | 7 13 6 Most Carried 15 | 6 12 15 Average Carried 7 | 3 10 5 Final Capacity 15 | 8 15 5 Final Carried 12 | 6 12 5 Class Distribution -------------------- 94% | Mutant 5% | Derelict-Mutant Dominant Class ---------------- Mutant | -10/Materials Mutant | -10/Subcaves Resources | -11 -10 -10 ----------- Run | Yrd Mat Sub Matter Collected 531 | 308 60 163 Remotely . | . . . Salvage Created 915 | 183 632 100 Parts 69 | 14 47 8 Haulers Intercepted 2 | . 2 . Recyclers Shooed 1 | . 1 . Parts Field Recycled . | . . . Retrieved Matter . | . . . Parts Self-Destructed 13 | . . 13 Prevented . | . . . Kills | -11 -10 -10 ------- Run | Yrd Mat Sub Combat Hostiles Destroyed 16 | . 13 3 Guns 15 | . 12 3 AOE 1 | . 1 . Classes Destroyed 10 | 3 6 1 Worker 5 | 1 4 . Builder 2 | . 2 . Tunneler 4 | 4 . . Hauler 2 | . 2 . Recycler 3 | 1 2 . Mechanic 1 | . 1 . Watcher 3 | . 3 . Swarmer 6 | . 6 . Grunt 7 | . 7 . Subdweller 3 | . . 3 Best Kill Streak 6 | 4 6 2 Combat Bots Only 4 | . 4 2 Max Kills in Single Turn 3 | 1 3 1 Gunslinging 1 | . 1 . Exploded 1 | . 1 . Melee . | . . . Uniques/NPCs Destroyed . | . . . Combat | -11 -10 -10 -------- Run | Yrd Mat Sub Hostile Shots Fired 73 | . 49 24 Missed 22 | . 15 7 Damage Taken 850 | . 493 357 Core 254 | . 229 25 Absorbed by Shields . | . . . Core Remaining (%) 100 | 100 . . Volleys Fired 79 | 14 43 22 Largest 2 | 2 2 2 Hottest 130 | 40 130 130 Shots Fired 151 | 28 86 37 Gun 144 | 28 86 30 Cannon . | . . . Launcher . | . . . Special 7 | . . 7 Kinetic 34 | 28 . 6 Thermal 112 | . 86 26 Explosive . | . . . Electromagnetic 5 | . . 5 Robot Hit Streak 15 | 5 8 15 Robot Miss Streak 7 | 3 7 3 Penetration Max . | . . . Secondary Targets 3 | . 3 . Max Gunslinging Chain 1 | . 1 . Shots Hit Robots 120 | 16 77 27 Core Hits 107 | 10 81 16 Critical Kills . | . . . Critical Parts Destroyed . | . . . Critical Strikes . | . . . Melee Attacks . | . . . Impact . | . . . Slashing . | . . . Piercing . | . . . Sneak Attacks . | . . . Combat Hostiles . | . . . Follow-up Attacks . | . . . Damage Inflicted 1686 | 146 1187 353 Guns 1415 | 146 916 353 Cannons . | . . . Explosions 271 | . 271 . Melee . | . . . Ramming . | . . . Kinetic 233 | 146 . 87 Thermal 1381 | . 1187 194 Explosive . | . . . Electromagnetic 72 | . . 72 Impact . | . . . Slashing . | . . . Piercing . | . . . Highest Corruption . | . . . Average Corruption . | . . . Corruption Purged . | . . . Corruption Blocked . | . . . Overload Shots . | . . . Overflow Damage 174 | . 174 . Projectiles . | . . . Explosions 174 | . 174 . Melee . | . . . Knockbacks . | . . . Impact . | . . . Kinetic . | . . . Secondary . | . . . Self-Inflicted Damage 113 | . 113 . Shots 1 | . 1 . Rammed . | . . . Targets Rammed . | . . . Kicked . | . . . Crushed . | . . . Highest Temperature 332 | . 332 51 Average Temperature 104 | . 114 19 Received Heat Transfer 231 | . 171 60 Siege Activations . | . . . Robots Corrupted . | . . . Combat Hostiles . | . . . Parts Fried . | . . . Impact Corruptions . | . . . Robots Melted . | . . . Combat Hostiles . | . . . Parts Melted . | . . . Heat Transferred 1515 | . 1275 240 Parts Sabotaged . | . . . Parts Stolen . | . . . Parts Stripped . | . . . Power Chain Reactions . | . . . Alert | -11 -10 -10 ------- Run | Yrd Mat Sub Peak Influence 374 | 30 374 . Initial 19 | . 19 . Average 191 | 12 222 . Maximum Alert Level 1 | . 1 . Low Security (%) 46 | 100 36 . Level 1 53 | . 63 . Level 2 . | . . . Level 3 . | . . . Level 4 . | . . . Level 5 . | . . . High Security . | . . . Max Security . | . . . Squads Dispatched 2 | . 2 . Investigation 1 | . 1 . Extermination . | . . . Reinforcement 1 | . 1 . Assault . | . . . Garrison . | . . . Intercept . | . . . Searches Triggered . | . . . Construction Impeded . | . . . Haulers Reinforced . | . . . Active Scanning Responses . | . . . Cargo Convoy Interrupts . | . . . Stealth | -11 -10 -10 --------- Run | Yrd Mat Sub Distress Signals 2 | . 2 . Communications Jammed . | . . . Distress Signals . | . . . Times Spotted 26 | . 21 5 Peak Tracking Total 4 | . 4 2 Tactical Retreats . | . . . Traps | -11 -10 -10 ------- Run | Yrd Mat Sub Traps Triggered . | . . . Indirectly . | . . . Trap Hack Attempts . | . . . Triggered . | . . . Disarmed . | . . . Reprogrammed . | . . . Reused . | . . . Traps Extracted . | . . . Installed 1 | . . 1 Triggered . | . . . Machines | -11 -10 -10 ---------- Run | Yrd Mat Sub Machines Disabled 3 | . 3 . Max in Single Turn 3 | . 3 . Machines Repaired . | . . . Machines Dismantled . | . . . Machines Sabotaged . | . . . Overloaded Fab Kills . | . . . Hacking | -11 -10 -10 --------- Run | Yrd Mat Sub Machines Accessed 4 | . 4 . Terminals 3 | . 3 . Fabricators . | . . . Repair Stations . | . . . Recycling Units 1 | . 1 . Scanalyzers . | . . . Garrison Access . | . . . Total Hacks 9 | . 9 . Successful 4 | . 4 . Failed 5 | . 5 . Catastrophic 1 | . 1 . Database Lockouts . | . . . Manual 3 | . 3 . Terminals 6 | . 6 . Fabricators . | . . . Repair Stations . | . . . Recycling Units 3 | . 3 . Scanalyzers . | . . . Garrison Access . | . . . Terminal Hacks 3 | . 3 . Emergency Access Points 1 | . 1 . Locate Traps 1 | . 1 . Zone Layout 1 | . 1 . Fabricator Hacks . | . . . Repair Station Hacks . | . . . Recycling Unit Hacks . | . . . Scanalyzer . | . . . Garrison Access Hacks . | . . . Unauthorized Hacks 1 | . 1 . Terminals 1 | . 1 . Assimilate 1 | . 1 . Fabricators . | . . . Repair Stations . | . . . Recycling Units . | . . . Scanalyzers . | . . . Garrison Access . | . . . Data Cores Recovered . | . . . Used . | . . . Hacking Detections 4 | . 4 . Full Trace Events 2 | . 2 . Feedback Events . | . . . Feedback Blocked . | . . . Robot Schematics Acquired . | . . . Robots Built . | . . . Authchips . | . . . Time . | . . . Total Robot Build Rating . | . . . Part Schematics Acquired . | . . . Parts Built . | . . . Authchips . | . . . Time . | . . . Total Part Build Rating . | . . . Parts Repaired . | . . . Time . | . . . Parts Recycled . | . . . Recycled Matter . | . . . Retrieved Matter . | . . . Retrieved Components . | . . . Parts Scanalyzed . | . . . Part Schematics Acquired . | . . . Parts Damaged . | . . . Bothacking | -11 -10 -10 ------------ Run | Yrd Mat Sub Used RIF Installer . | . . . Robots Hacked . | . . . Non-combat . | . . . Combat . | . . . Robot Hacks Applied . | . . . Relay Couplers Released . | . . . Fabnet Peak Effective % . | . . . Robots Rewired . | . . . Allies Hacked . | . . . Hacks Repelled . | . . . Allies | -11 -10 -10 -------- Run | Yrd Mat Sub Total Allies 1 | . 1 . Largest Group 1 | . 1 1 Highest-Rated Group 10 | . 10 9 Highest-Rated Ally 10 | . 10 9 Total Orders . | . . . Ally Attacks . | . . . Total Damage . | . . . Kills . | . . . Allies Corrupted . | . . . Allies Melted . | . . . Intel | -11 -10 -10 ------- Run | Yrd Mat Sub Robot Analysis Total . | . . . Derelict Logs Recovered 1 | . . 1 Drone Launches . | . . . Drone Recoveries . | . . . Exploration | -11 -10 -10 ------------- Run | Yrd Mat Sub Turns Passed 1803 | 143 818 842 Spaces Moved 920 | 86 387 447 Core 4 | 4 . . Treads 831 | . 384 447 Legs . | . . . Wheels 85 | 82 3 . Hover . | . . . Flight . | . . . Fastest Speed 50 | 50 100 160 Average Speed 153 | 97 159 160 Slowest Speed 160 | 100 160 160 Overloaded Moves . | . . . Propulsion Burnouts . | . . . Robots Hopped . | . . . Cave-ins Triggered . | . . . Exploration Rate (%) 28 | 3 61 22 Regions Visited 2 Branch Regions 1 Pre-discovered Areas . | . . . Known Exits Taken . | . . . Unknown Exits Taken 2 | 1 1 . Scrap Searched 10 | . . 10 Spaces Dug . | . . . Terrain Destroyed 17 | . 17 . Melee . | . . . Projectile . | . . . AOE 17 | . 17 . Terrain Rammed . | . . . Walls Destroyed . | . . . Machines Disabled . | . . . Actions | -11 -10 -10 --------- Run | Yrd Mat Sub Total 1151 | 121 501 529 Wait 62 | . 56 6 Move 918 | 85 386 447 Hop . | . . . Pick Up 34 | 13 8 13 Fast Attach 3 | . . 3 Attach 9 | 7 . 2 Detach . | . . . Swap 17 | 2 5 10 Drop 25 | . 3 22 Fire 79 | 14 43 22 Melee . | . . . Ram . | . . . Kick . | . . . Crush . | . . . Escape Stasis . | . . . Rewire . | . . . Trap 1 | . . 1 Miscellaneous 3 | . . 3 Route ------- -11/Scrapyard -10/Materials (discovered 3 exits: [*Mat x2] / [*Sub]) -10/Subcaves History --------- Turn | Location | Event 20 | -11/Scrapyard | Discovered new exit (range 16) 144 | -11/Scrapyard | Entered Materials 282 | -10/Materials | Core integrity fell below 50% 320 | -10/Materials | Build established: Mutant 427 | -10/Materials | Discovered new exit (range 15) 690 | -10/Materials | Discovered new exit (range 12) 752 | -10/Materials | Core integrity fell below 20% 932 | -10/Materials | Discovered new exit (range 10) 962 | -10/Materials | Entered Subcaves 962 | -10/Subcaves | Accompanied by 1 ally 1004 | -10/Subcaves | Learned 2 Materials zone layouts 1170 | -10/Subcaves | Disturbed a concealed Subdweller 1336 | -10/Subcaves | Shifting Twisted Machinery released Scrap Shield 1378 | -10/Subcaves | A swath of the cavern ceiling suddenly collapsed 1769 | -10/Subcaves | Shifting Twisted Machinery released Sub. Shrapnel Launcher 1804 | -10/Subcaves | Destroyed by B9-PTK(R) with Subdweller Machine Gun Last Messages --------------- Scrap Shield falls loose from the Twisted Machinery. 01340_ Dropped Scrap Shield. 01340_ Acquired Scrap Shield. 01345_ Acquired 8 matter. A swath of the cavern ceiling suddenly collapses. 01394_ Acquired 6 matter. 01418_ P7-U8K(u) tweaks Twisted Machinery. 01516_ P7-U8K(u) builds Twisted Machinery. 01519_ P7-U8K(u) tweaks Twisted Machinery. 01553_ Acquired 10 matter. 01599_ Subatomizers dissect the Imp. Terrain Scanner. 01749_ Acquired 13 matter. 01763_ Acquired 7 matter. Sub. Shrapnel Launcher falls loose from the Twisted Machinery. 01783_ Dropped Riot Gun. 01784_ Acquired Sub. Shrapnel Launcher. Map ----- +----------------------------------------------------+ | ! # #???##??##" % ##????????? | | #" ## ### #???###?#"#"# ##?????????? | | # ## ## #??###??######""##" ###??????????? | | "# ## ##???#####"""#""#### ##????????????? | | ## ## ##### ""#""#"##??####?????????????? | | "&## ## "# ###"##????????????????????? | | &"## ### # ##"""#????????????????????? | | #### #?#### % #####""#????????????????????? | | #??## #????# ##??#####???????????????????? | | ????# #????# ###" #???? #???????????????????? | | ????# "#????# # " #???? ##???????????????????? | | ????####????# " #?????#????????????????????? | | ????????????# #""" #?????????????????????????? | | ????????????### #"""" #????????????????????????? | | ??????########" % "#"""" ###?????????????????????? | | ?????## " " ##?""" #?????????????????????? | | ?????# " ###?# #?????????????????????? | | ?????# " " ! "##?# " #?????????????????????? | | ?????# ""### ""##?#" ###???????????????????? | | ?????## #?### ""###" "#???????????????????? | | ??????## ##???##" #" " #???????????????????? | | ?????### ##?????#""""% "" #???????????????????? | | ?????# ##??????###""##" ##???????????????????? | | ????## ##??????##?#####" ##????????????????????? | | ????# ##?????? ??#"" ##?????????????????????? | | ????# #?????# #?## @[#?????????????????????? | | ????## #??#### """?# #?????????????????????? | | ?????## #??# " "## #???#?????????????????? | | ??????###??# " "R ## ##????????????????? | | ???????????# #????????????????? | | ???????????????## ###????????????????? | | ????????????????## ## R %#??????????????????? | | ?????????????????# ?### #??????????????????? | | ?????????????????##### ???? #?????????????????? | | ?????????????????????###???? ????????????????? | | ???????????????????????????? ??????????????? | | ????????????????????????????? #?????????????? | | ????????????????????????????? % #?????????????? | | ?????????????????????????????### ????????????? | | ????????????????????????????????# ????????????? | | ?????????????????????????????????# ???????????? | | ??????????????????????????????????# ?????????????? | | ?????????????????????????????????????????????????? | | ?????????????????????????????????????????????????? | | ?????????????????????????????????????????????????? | | ?????????????????????????????????????????????????? | | ?????????????????????????????????????????????????? | | ?????????????????????????????????????????????????? | | ?????????????????????????????????????????????????? | | ?????????????????????????????????????????????????? | +----------------------------------------------------+ Best States ------------- Heat Dissipation 25 Energy Generation 15 Energy Capacity 170 Matter Stores 300 Matter Capacity 300 Sight Range 16 Terrain Scan Range 16 Terrain Scan Density 10 Armor Coverage 800 Evasion (%) 40 Recoil Reduction 2 Item Schematics ----------------- None Robot Schematics ------------------ None Fabricated ------------ Nothing Alien Tech Used ----------------- None Achievements -------------- None Challenges ------------ None Game ------ Seed GravityNuclearBlade Manual? 0 Play Time 00:17:11 Cumulative 152.3 hours Start 2024.06.12 @ 14:56:20 End 2024.06.12 @ 15:15:48 Sessions 1 Manual Loads 0 Difficulty Rogue Special Mode None Game No. 125 Rogue 120 Adventurer 5 Explorer 0 Win Type - Total 3 Types 2/0/1/0/0/0/0/0/0 Lore% 63 Gallery% 75 Achievement% 53 Wizard Run 0 Options --------- Layout 2 ASCII 0 Keyboard 0 Movement Mouse Keybinds 0 Fullscreen 2 Font 24/Smallcaps Map View 50x44 Zoom Use 0% Tactical HUD 1 Map Filters NONE Filters NONE Steam 1 RUN: 866d17fe-2cae-4792-b5bb-bc6c59630341